fUST/lending_fUST_20240603
["ID","MTS","AMOUNT","RATE_DAILY","PERIOD"]
[328428392,1717378245609,-480.59888166,0.00026239,2]
[328428393,1717378245618,-500.0,0.00026239,2]
[328428395,1717378245629,-475.04377653,0.00026239,2]
[328428396,1717378245638,-500.0,0.00026239,2]
[328428398,1717378245647,-500.0,0.00026239,2]
[328428399,1717378245657,-500.0,0.00026239,2]
[328428400,1717378245666,-500.0,0.00026239,2]
[328428401,1717378245675,-151.0,0.00026241,2]
[328428402,1717378245684,-151.0,0.00026241,2]
[328428403,1717378245695,-151.0,0.00026241,2]
[328428404,1717378245705,-151.0,0.00026241,2]
[328428405,1717378245714,-151.0,0.00026241,2]
[328428406,1717378245723,-151.0,0.00026241,2]
[328428407,1717378245733,-379.525424,0.00026241,2]
[328428408,1717378245742,-379.525424,0.00026241,2]
[328428409,1717378245751,-151.0,0.00026241,2]
[328428410,1717378245761,-214.453115,0.00026241,2]
[328428411,1717378245770,-214.453115,0.00026241,2]
[328428412,1717378245779,-151.0,0.00026241,2]
[328428413,1717378245788,-151.0,0.00026241,2]
[328428414,1717378245798,-151.0,0.00026241,2]
[328428415,1717378245807,-179.976127,0.00026241,2]
[328428416,1717378245816,-151.0,0.00026241,2]
[328428417,1717378245826,-176.615196,0.00026241,2]
[328428418,1717378245835,-151.0,0.00026241,2]
[328428419,1717378245847,-153.437182,0.00026241,2]
[328428420,1717378245856,-153.437182,0.00026241,2]
[328428421,1717378245866,-278.696478,0.00026241,2]
[328428422,1717378245875,-284.205001,0.00026241,2]
[328428423,1717378245884,-284.205001,0.00026241,2]
[328428424,1717378245893,-2639.57223461,0.00026241,2]
[328428425,1717378245902,-151.0,0.00026242,2]
[328428426,1717378245911,-151.0,0.00026242,2]
[328428427,1717378245920,-151.0,0.00026242,2]
[328428428,1717378245929,-151.0,0.00026242,2]
[328428429,1717378245940,-236.795859,0.00026242,2]
[328428430,1717378245949,-379.525424,0.00026242,2]
[328428431,1717378245958,-379.525424,0.00026242,2]
[328428432,1717378245967,-151.0,0.00026242,2]
[328428433,1717378245976,-214.453115,0.00026242,2]
[328428434,1717378245986,-214.453115,0.00026242,2]
[328428435,1717378245995,-151.0,0.00026242,2]
[328428436,1717378246004,-151.0,0.00026242,2]
[328428437,1717378246014,-500.0,0.00026242,2]
[328428438,1717378246023,-153.437182,0.00026242,2]
[328428439,1717378246032,-153.437182,0.00026242,2]
[328428440,1717378246210,-284.205001,0.00026242,2]
[328428441,1717378246220,-284.205001,0.00026242,2]
[328428442,1717378246229,-270.105906,0.00026243,2]
[328428443,1717378246239,-151.0,0.00026243,2]
[328428444,1717378246248,-151.0,0.00026243,2]
[328428445,1717378246257,-151.0,0.00026243,2]
[328428446,1717378246267,-151.0,0.00026243,2]
[328428447,1717378246276,-151.0,0.00026243,2]
[328428448,1717378246285,-151.0,0.00026243,2]
[328428449,1717378246294,-379.525424,0.00026243,2]
[328428450,1717378246303,-379.525424,0.00026243,2]
[328428451,1717378246312,-151.0,0.00026243,2]
[328428452,1717378246321,-214.453115,0.00026243,2]
[328428453,1717378246331,-214.453115,0.00026243,2]
[328428454,1717378246340,-214.453115,0.00026243,2]
[328428455,1717378246349,-214.453115,0.00026243,2]
[328428456,1717378246359,-151.0,0.00026243,2]
[328428457,1717378246368,-151.0,0.00026243,2]
[328428458,1717378246377,-151.0,0.00026243,2]
[328428459,1717378246386,-151.0,0.00026243,2]
[328428460,1717378246395,-500.0,0.00026243,2]
[328428461,1717378246404,-500.0,0.00026243,2]
[328428462,1717378246413,-151.0,0.00026243,2]
[328428463,1717378246422,-151.0,0.00026243,2]
[328428464,1717378246431,-151.0,0.00026243,2]
[328428465,1717378246441,-245.010446,0.00026243,2]
[328428466,1717378246450,-1233.3,0.00026243,2]
[328428467,1717378246459,-1233.3,0.00026243,2]
[328428468,1717378246468,-153.437182,0.00026243,2]
[328428469,1717378246477,-153.437182,0.00026243,2]
[328428470,1717378246486,-284.205001,0.00026243,2]
[328428471,1717378246495,-284.205001,0.00026243,2]
[328428472,1717378246504,-7555.3965372,0.00026243,3]
[328428473,1717378246513,-1000.0,0.00026286,2]
[328428474,1717378246523,-73198.134401,0.000263,2]
[328428475,1717378246532,-160.0,0.000263,2]
[328428476,1717378246541,-1960.48914078,0.00026315,2]
[328428477,1717378246550,-239.674,0.00026317,2]
[328428478,1717378246559,-8575.75802986,0.00026327,2]
[328428479,1717378246569,-151.0,0.00026327,2]
[328428480,1717378246578,-151.0,0.00026327,2]
[328428481,1717378246587,-379.525424,0.00026327,2]
[328428482,1717378246596,-379.525424,0.00026327,2]
[328428483,1717378246606,-151.0,0.00026327,2]
[328428484,1717378246615,-214.453115,0.00026327,2]
[328428485,1717378246624,-214.453115,0.00026327,2]
[328428486,1717378246633,-151.0,0.00026327,2]
[328428489,1717378246644,-151.0,0.00026327,2]
[328428492,1717378246654,-151.0,0.00026327,2]
[328428494,1717378246664,-153.437182,0.00026327,2]
[328428496,1717378246673,-153.437182,0.00026327,2]
[328428497,1717378246683,-284.205001,0.00026327,2]
[328428499,1717378246694,-284.205001,0.00026327,2]
[328428501,1717378246703,-1233.3,0.00026328,2]
[328428503,1717378246713,-151.0,0.00026329,2]
[328428504,1717378246722,-151.0,0.00026329,2]
[328428506,1717378246731,-379.525424,0.00026329,2]
[328428508,1717378246740,-379.525424,0.00026329,2]
[328428509,1717378246749,-151.0,0.00026329,2]
[328428511,1717378246758,-214.453115,0.00026329,2]
[328428512,1717378246767,-214.453115,0.00026329,2]
[328428514,1717378246777,-151.0,0.00026329,2]
[328428515,1717378246786,-151.0,0.00026329,2]
[328428516,1717378246795,-500.0,0.00026329,2]
[328428517,1717378246805,-500.0,0.00026329,2]
[328428518,1717378246814,-151.0,0.00026329,2]
[328428519,1717378246824,-1233.3,0.00026329,2]
[328428520,1717378246833,-153.437182,0.00026329,2]
[328428521,1717378246843,-153.437182,0.00026329,2]
[328428522,1717378246856,-284.205001,0.00026329,2]
[328428523,1717378246865,-284.205001,0.00026329,2]
[328428524,1717378246874,-3980.85225988,0.0002633,7]
[328428525,1717378246883,-60036.477559,0.0002633,2]
[328428526,1717378246892,-151.0,0.0002633,2]
[328428527,1717378246901,-279.970023,0.0002633,2]
[328428528,1717378246911,-379.525424,0.0002633,2]
[328428529,1717378246920,-379.525424,0.0002633,2]
[328428530,1717378246932,-151.0,0.0002633,2]
[328428531,1717378246942,-214.453115,0.0002633,2]
[328428532,1717378246951,-214.453115,0.0002633,2]
[328428533,1717378246959,-151.0,0.0002633,2]
[328428534,1717378246968,-151.0,0.0002633,2]
[328428535,1717378246979,-153.437182,0.0002633,2]
[328428536,1717378246988,-153.437172,0.0002633,2]
[328428537,1717378246998,-284.205001,0.0002633,2]
[328428538,1717378247008,-284.205009,0.0002633,2]
[328428539,1717378247018,-500.0,0.0002634,2]
[328428540,1717378247027,-1233.3,0.0002634,2]
[328428541,1717378247036,-1233.3,0.0002634,2]
[328428542,1717378247046,-623.8675752,0.00026341,2]
[328428543,1717378247054,-404.96026001,0.00026341,2]
[328428544,1717378247063,-413.51849285,0.00026341,2]
[328428545,1717378247072,-2033.82676521,0.00026341,2]
[328428546,1717378247082,-1098.98243404,0.00026341,2]
[328428547,1717378247090,-944.39208909,0.00026341,2]
[328428548,1717378247099,-154.9690062,0.00026341,2]
[328428549,1717378247108,-659.07112983,0.00026341,2]
[328428550,1717378247117,-155.0,0.00026341,2]
[328428551,1717378247126,-1872.29956246,0.00026341,2]
[328428552,1717378247135,-242.274903,0.00026341,2]
[328428553,1717378247143,-379.525424,0.00026341,2]
[328428554,1717378247152,-379.525418,0.00026341,2]
[328428555,1717378247161,-151.0,0.00026341,2]
[328428556,1717378247170,-214.453115,0.00026341,2]
[328428557,1717378247178,-214.453107,0.00026341,2]
[328428558,1717378247187,-151.0,0.00026341,2]
[328428559,1717378247196,-151.0,0.00026341,2]
[328428560,1717378247205,-1537.53200485,0.00026341,2]
[328428561,1717378247214,-154.9690062,0.00026341,2]
[328428562,1717378247223,-528.99729379,0.00026341,2]
[328428563,1717378247231,-500.0,0.00026342,2]
[328428564,1717378247240,-500.0,0.00026342,2]
[328428565,1717378247249,-1233.3,0.00026342,2]
[328428566,1717378247258,-1233.3,0.00026342,2]
[328428567,1717378247267,-500.0,0.00026343,2]
[328428568,1717378247275,-500.0,0.00026343,2]
[328428569,1717378247285,-500.0,0.00026343,2]
[328428570,1717378247295,-500.0,0.00026343,2]
[328428571,1717378247304,-500.0,0.00026343,2]
[328428572,1717378247314,-500.0,0.00026343,2]
[328428573,1717378247323,-500.0,0.00026343,2]
[328428574,1717378247332,-500.0,0.00026343,2]
[328428575,1717378247342,-500.0,0.00026343,2]
[328428576,1717378247351,-500.0,0.00026343,2]
[328428577,1717378247361,-500.0,0.00026343,2]
[328428578,1717378247371,-500.0,0.00026343,2]
[328428579,1717378247380,-500.0,0.00026343,2]
[328428580,1717378247389,-278.93,0.00026343,2]
[328428581,1717378247398,-1233.3,0.00026343,2]
[328428582,1717378247408,-1233.3,0.00026343,2]
[328428583,1717378247417,-1233.3,0.00026343,2]
[328428585,1717378247426,-1233.3,0.00026343,2]
[328428587,1717378247435,-1233.3,0.00026343,2]
[328428589,1717378247445,-1233.3,0.00026343,2]
[328428590,1717378247454,-1233.3,0.00026343,2]
[328428592,1717378247463,-1233.3,0.00026343,2]
[328428593,1717378247472,-1233.3,0.00026343,2]
[328428595,1717378247481,-1233.3,0.00026343,2]
[328428597,1717378247490,-1233.3,0.00026343,2]
[328428598,1717378247498,-1233.3,0.00026343,2]
[328428600,1717378247507,-1233.3,0.00026343,2]
[328428602,1717378247516,-1233.3,0.00026343,2]
[328428603,1717378247525,-1233.4,0.00026343,2]
[328428605,1717378247534,-151.0,0.00026343,7]
[328428607,1717378247544,-151.0,0.00026343,7]
[328428609,1717378247553,-63286.69206455,0.0002639,2]
[328428610,1717378247563,-7458.94652043,0.0002649,2]
[328428612,1717378247572,-46529.70326106,0.000265,2]
[328428614,1717378247581,-3000.0,0.000265,2]
[328428616,1717378247590,-3000.0,0.0002651,2]
[328428617,1717378247599,-3000.0,0.0002652,2]
[328428619,1717378247608,-3000.0,0.0002653,2]
[328428621,1717378247617,-3000.0,0.0002654,2]
[328428622,1717378247626,-3000.0,0.0002655,2]
[328428624,1717378247635,-3000.0,0.0002656,2]
[328428626,1717378247644,-3000.0,0.0002657,2]
[328428627,1717378247653,-601.64,0.00026575,2]
[328428629,1717378247662,-3000.0,0.0002658,2]
[328428631,1717378247671,-3000.0,0.0002659,2]
[328428633,1717378247681,-2048.66901308,0.000266,2]
[328428634,1717378247691,-3000.0,0.000266,2]
[328428636,1717378247700,-3000.0,0.0002661,2]
[328428638,1717378247710,-3000.0,0.0002662,2]
[328428640,1717378247719,-3000.0,0.0002663,2]
[328428641,1717378247728,-3000.0,0.0002664,2]
[328428643,1717378247737,-3000.0,0.0002665,2]
[328428644,1717378247746,-3000.0,0.0002666,2]
[328428645,1717378247755,-3000.0,0.0002667,2]
[328428646,1717378247765,-3000.0,0.0002668,2]
[328428647,1717378247774,-3000.0,0.0002669,2]
[328428648,1717378247783,-3000.0,0.000267,2]
[328428649,1717378247792,-3000.0,0.0002671,2]
[328428650,1717378247801,-3000.0,0.0002672,2]
[328428651,1717378247810,-3000.0,0.0002673,2]
[328428652,1717378247819,-3000.0,0.0002674,2]
[328428653,1717378247828,-3000.0,0.0002675,2]
[328428654,1717378247837,-3000.0,0.0002676,2]
[328428655,1717378247850,-3000.0,0.0002677,2]
[328428656,1717378247859,-3000.0,0.0002678,2]
[328428657,1717378247868,-3000.0,0.0002679,2]
[328428658,1717378247878,-1000.0,0.000268,8]
[328428659,1717378247887,-3000.0,0.000268,2]
[328428660,1717378247897,-3000.0,0.0002681,2]
[328428661,1717378247906,-3000.0,0.0002682,2]
[328428662,1717378247915,-3000.0,0.0002683,2]
[328428663,1717378247925,-3000.0,0.0002684,2]
[328428664,1717378247935,-601.64,0.00026849,2]
[328428665,1717378247946,-750.0,0.00026849,2]
[328428666,1717378247956,-3000.0,0.0002685,2]
[328428667,1717378247965,-3000.0,0.0002686,2]
[328428668,1717378247974,-3000.0,0.0002687,2]
[328428669,1717378247983,-3000.0,0.0002688,2]
[328428670,1717378247992,-3000.0,0.0002689,2]
[328428671,1717378248002,-176070.03639492,0.000269,2]
[328428672,1717378248011,-2645.61,0.000269,3]
[328428673,1717378248021,-2645.61,0.000269,3]
[328428674,1717378248032,-2645.61,0.000269,3]
[328428675,1717378248041,-2645.61,0.000269,3]
[328428676,1717378248051,-2645.61,0.000269,3]
[328428677,1717378248060,-2645.61,0.000269,3]
[328428678,1717378248070,-2645.61,0.000269,3]
[328428679,1717378248079,-2645.61,0.000269,3]
[328428680,1717378248088,-2645.61,0.000269,3]
[328428681,1717378248098,-2645.61,0.000269,3]
[328428682,1717378248107,-2645.61,0.000269,3]
[328428683,1717378248116,-2645.61,0.000269,3]
[328428684,1717378248125,-2645.61,0.000269,3]
[328428685,1717378248135,-2645.61,0.000269,3]
[328428686,1717378248143,-2645.61,0.000269,3]
[328428687,1717378248153,-2645.61,0.000269,3]
[328428688,1717378248163,-2645.61,0.000269,3]
[328428689,1717378248173,-2645.61,0.000269,3]
[328428690,1717378248182,-2645.61,0.000269,3]
[328428691,1717378248192,-2645.61,0.000269,3]
[328428692,1717378248201,-3000.0,0.000269,2]
[328428693,1717378248210,-3000.0,0.0002691,2]
[328428694,1717378248220,-3000.0,0.0002692,2]
[328428695,1717378248229,-3000.0,0.0002693,2]
[328428696,1717378248238,-3000.0,0.0002694,2]
[328428697,1717378248249,-3000.0,0.0002695,2]
[328428698,1717378248259,-5421.060342,0.0002696,2]
[328428699,1717378248268,-149214.41319443,0.00027,15]
[328428700,1717378248277,-568.35508981,0.00027,2]
[328428701,1717378248288,-454.0,0.00027,2]
[328428702,1717378248297,-601.64,0.00027123,2]
[328428703,1717378248306,-601.64,0.00027397,2]
[328428704,1717378248315,-504.09589829,0.00027397,15]
[328428705,1717378248324,-500.0,0.00027397,2]
[328428706,1717378248333,-500.0,0.00027397,2]
[328428707,1717378248342,-500.0,0.00027397,2]
[328428708,1717378248351,-500.0,0.00027397,2]
[328428709,1717378248360,-500.0,0.00027397,2]
[328428710,1717378248370,-500.0,0.00027397,2]
[328428711,1717378248379,-500.0,0.00027397,2]
[328428712,1717378248388,-500.0,0.00027397,2]
[328428713,1717378248397,-500.0,0.00027397,2]
[328428714,1717378248406,-500.0,0.00027397,2]
[328428715,1717378248415,-500.0,0.00027397,2]
[328428716,1717378248424,-500.0,0.00027397,2]
[328428717,1717378248433,-500.0,0.00027397,2]
[328428718,1717378248443,-500.0,0.00027397,2]
[328428719,1717378248452,-500.0,0.00027397,2]
[328428720,1717378248461,-500.0,0.00027397,2]
[328428721,1717378248470,-500.0,0.00027397,2]
[328428722,1717378248479,-500.0,0.00027397,2]
[328428723,1717378248488,-500.0,0.00027397,2]
[328428724,1717378248497,-500.0,0.00027397,2]
[328428725,1717378248506,-500.0,0.00027397,2]
[328428726,1717378248515,-500.0,0.00027397,2]
[328428727,1717378248525,-500.0,0.00027397,2]
[328428728,1717378248534,-500.0,0.00027397,2]
[328428729,1717378248543,-500.0,0.00027397,2]
[328428730,1717378248552,-500.0,0.00027397,2]
[328428731,1717378248561,-500.0,0.00027397,2]
[328428732,1717378248570,-500.0,0.00027397,2]
[328428733,1717378248580,-500.0,0.00027397,2]
[328428734,1717378248589,-500.0,0.00027397,2]
[328428735,1717378248598,-500.0,0.00027397,2]
[328428736,1717378248607,-500.0,0.00027397,2]
[328428737,1717378248616,-500.0,0.00027397,2]
[328428738,1717378248624,-500.0,0.00027397,2]
[328428739,1717378248633,-500.0,0.00027397,2]
[328428740,1717378248642,-500.0,0.00027397,2]
[328428741,1717378248651,-500.0,0.00027397,2]
[328428742,1717378248660,-500.0,0.00027397,2]
[328428743,1717378248669,-500.0,0.00027397,2]
[328428744,1717378248677,-500.0,0.00027397,2]
[328428745,1717378248690,-422.23526909,0.00027397,2]
[328428746,1717378248698,-500.0,0.00027397,2]
[328428747,1717378248707,-500.0,0.00027397,2]
[328428748,1717378248716,-500.0,0.00027397,2]
[328428749,1717378248725,-500.0,0.00027397,2]
[328428750,1717378248735,-500.0,0.00027397,2]
[328428751,1717378248744,-500.0,0.00027397,2]
[328428752,1717378248753,-500.0,0.00027397,2]
[328428753,1717378248762,-500.0,0.00027397,2]
[328428754,1717378248771,-500.0,0.00027397,2]
[328428755,1717378248780,-500.0,0.00027397,2]
[328428756,1717378248790,-500.0,0.00027397,2]
[328428757,1717378248799,-500.0,0.00027397,2]
[328428758,1717378248808,-500.0,0.00027397,2]
[328428759,1717378248817,-500.0,0.00027397,2]
[328428760,1717378248826,-500.0,0.00027397,2]
[328428761,1717378248835,-500.0,0.00027397,2]
[328428762,1717378248844,-500.0,0.00027397,2]
[328428763,1717378248858,-500.0,0.00027397,2]
[328428764,1717378248867,-500.0,0.00027397,2]
[328428765,1717378248877,-500.0,0.00027397,2]
[328428766,1717378248887,-500.0,0.00027397,2]
[328428767,1717378248899,-500.0,0.00027397,2]
[328428768,1717378248909,-500.0,0.00027397,2]
[328428769,1717378248919,-500.0,0.00027397,2]
[328428770,1717378248929,-410.51689165,0.00027397,2]
[328428771,1717378248940,-500.0,0.00027397,2]
[328428772,1717378248949,-500.0,0.00027397,2]
[328428773,1717378248958,-500.0,0.00027397,2]
[328428774,1717378248968,-500.0,0.00027397,2]
[328428775,1717378248977,-500.0,0.00027397,2]
[328428776,1717378248987,-500.0,0.00027397,2]
[328428777,1717378248997,-500.0,0.00027397,2]
[328428778,1717378249007,-500.0,0.00027397,2]
[328428779,1717378249017,-500.0,0.00027397,2]
[328428780,1717378249026,-500.0,0.00027397,2]
[328428781,1717378249035,-500.0,0.00027397,2]
[328428782,1717378249044,-500.0,0.00027397,2]
[328428783,1717378249054,-500.0,0.00027397,2]
[328428784,1717378249064,-500.0,0.00027397,2]
[328428785,1717378249073,-500.0,0.00027397,2]
[328428786,1717378249082,-500.0,0.00027397,2]
[328428787,1717378249092,-500.0,0.00027397,2]
[328428788,1717378249102,-500.0,0.00027397,2]
[328428789,1717378249112,-500.0,0.00027397,2]
[328428790,1717378249122,-500.0,0.00027397,2]
[328428791,1717378249131,-500.0,0.00027397,2]
[328428792,1717378249141,-500.0,0.00027397,2]
[328428793,1717378249151,-500.0,0.00027397,2]
[328428794,1717378249160,-500.0,0.00027397,2]
[328428795,1717378249169,-500.0,0.00027397,2]
[328428796,1717378249178,-151.0,0.00027397,2]
[328428797,1717378249188,-151.0,0.00027397,2]
[328428798,1717378249198,-151.0,0.00027397,2]
[328428799,1717378249206,-151.0,0.00027397,2]
[328428800,1717378249216,-151.0,0.00027397,2]
[328428801,1717378249225,-151.0,0.00027397,2]
[328428802,1717378249234,-151.0,0.00027397,2]
[328428803,1717378249243,-151.0,0.00027397,2]
[328428804,1717378249253,-151.0,0.00027397,2]
[328428805,1717378249262,-151.0,0.00027397,2]
[328428806,1717378249271,-151.0,0.00027397,2]
[328428807,1717378249281,-175.114501,0.00027397,2]
[328428808,1717378249290,-151.0,0.00027397,2]
[328428809,1717378249299,-196.668187,0.00027397,2]
[328428810,1717378249308,-151.0,0.00027397,2]
[328428811,1717378249318,-151.0,0.00027397,2]
[328428812,1717378249327,-165.522517,0.00027397,2]
[328428813,1717378249337,-1736.047129,0.00027397,2]
[328428814,1717378249346,-1736.047129,0.00027397,2]
[328428815,1717378249355,-1736.047129,0.00027397,2]
[328428816,1717378249364,-1736.047129,0.00027397,2]
[328428817,1717378249373,-1736.047129,0.00027397,2]
[328428818,1717378249382,-1736.047129,0.00027397,2]
[328428819,1717378249391,-1736.047129,0.00027397,2]
[328428820,1717378249400,-1736.047129,0.00027397,2]
[328428821,1717378249408,-1736.047129,0.00027397,2]
[328428822,1717378249418,-1736.047129,0.00027397,2]
[328428823,1717378249427,-1736.047129,0.00027397,2]
[328428824,1717378249437,-1736.047129,0.00027397,2]
[328428825,1717378249446,-1736.047129,0.00027397,2]
[328428826,1717378249455,-1736.047129,0.00027397,2]
[328428827,1717378249463,-1736.047129,0.00027397,2]
[328428828,1717378249473,-1736.047129,0.00027397,2]
[328428829,1717378249481,-1736.047129,0.00027397,2]
[328428830,1717378249491,-1736.047129,0.00027397,2]
[328428831,1717378249500,-1736.047129,0.00027397,2]
[328428832,1717378249509,-1736.04713,0.00027397,2]
[328428833,1717378249648,-205.33341948,0.00027397,10]
[328428834,1717378249658,-302.46205786,0.00027433,2]
[328428835,1717378249668,-161.16201442,0.00027433,2]
[328428836,1717378249677,-266.88626183,0.00027433,2]
[328428837,1717378249686,-264.83158431,0.00027433,2]
[328428838,1717378249697,-10339.52219398,0.00027433,2]
[328428839,1717378249706,-43529.58544897,0.000275,2]
[328428840,1717378249715,-150.96980604,0.00027591,2]
[328428841,1717378249724,-250.44079184,0.00027591,2]
[328428842,1717378249733,-601.64,0.00027671,2]
[328428843,1717378249742,-454.0,0.00027671,2]
[328428844,1717378249751,-181.9645792,0.00027671,2]
[328428845,1717378249761,-2645.61,0.000278,3]
[328428846,1717378249771,-2645.61,0.000278,3]
[328428847,1717378249780,-2645.61,0.000278,3]
[328428848,1717378249789,-2645.61,0.000278,3]
[328428849,1717378249798,-2645.61,0.000278,3]
[328428850,1717378249808,-2645.61,0.000278,3]
[328428851,1717378249818,-2645.61,0.000278,3]
[328428852,1717378249827,-2645.61,0.000278,3]
[328428853,1717378249837,-2645.61,0.000278,3]
[328428854,1717378249848,-2645.61,0.000278,3]
[328428855,1717378249858,-2645.61,0.000278,3]
[328428856,1717378249867,-2645.61,0.000278,3]
[328428857,1717378249876,-2645.61,0.000278,3]
[328428858,1717378249885,-2645.61,0.000278,3]
[328428859,1717378249894,-2645.61,0.000278,3]
[328428860,1717378249904,-2645.61,0.000278,3]
[328428861,1717378249913,-2645.61,0.000278,3]
[328428862,1717378249922,-2645.61,0.000278,3]
[328428863,1717378249931,-2645.61,0.000278,3]
[328428864,1717378249942,-2645.61,0.000278,3]
[328428865,1717378249952,-690.85182971,0.000279,2]
[328428866,1717378249961,-601.64,0.00027945,2]
[328428867,1717378249971,-31329.56402258,0.0002799,2]
[328428868,1717378249980,-29033.6880627,0.0002799,2]
[328428869,1717378249989,-221.97996924,0.00028,2]
[328428870,1717378249998,-309.89823126,0.00028,2]
[328428871,1717378250008,-154.98450155,0.00028,2]
[328428872,1717378250018,-321.91649644,0.00028,2]
[328428873,1717378250029,-619.71615373,0.00028,2]
[328428874,1717378250038,-188.35628415,0.00028,2]
[328428875,1717378250047,-32816.06812243,0.00028,2]
[328428876,1717378250057,-604.04650929,0.00028,2]
[328428877,1717378250067,-761.95780481,0.00028,2]
[328428878,1717378250077,-457.13252986,0.00028,2]
[328428879,1717378250086,-577.28395384,0.00028,14]
[328428880,1717378250095,-301.93961208,0.00028055,4]
[328428881,1717378250104,-1162.64817669,0.00028083,2]
[328428882,1717378250116,-2245.86894715,0.00028129,2]
[328428883,1717378250125,-1219.08798904,0.0002814,2]
[328428884,1717378250136,-1162.64817669,0.00028193,2]
[328428885,1717378250145,-2245.86894715,0.000282,2]
[328428886,1717378250154,-1219.08798904,0.00028203,2]
[328428887,1717378250164,-2245.86894715,0.00028217,2]
[328428888,1717378250173,-601.8487779,0.00028219,2]
[328428889,1717378250182,-1162.64817669,0.00028226,2]
[328428890,1717378250191,-1219.08798904,0.00028264,2]
[328428891,1717378250200,-153.61545781,0.00028298,2]
[328428892,1717378250209,-58405.11007329,0.00028306,30]
[328428893,1717378250393,-886.027425,0.00028306,30]
[328428894,1717378250404,-405.20791506,0.00028306,30]
[328428895,1717378250416,-7302.86528306,0.00028306,30]
[328428896,1717378250558,-342.80499812,0.00025999,2]
[328428897,1717378250679,-3707.23849482,0.00025999,2]
[328428898,1717378250689,-151.56849473,0.00026063,2]
[328428899,1717378250699,-191580.54570359,0.00028306,30]
[328428900,1717378250708,-153.61545781,0.0002832,2]
[328428901,1717378250717,-159.79947473,0.00028324,2]
[328428902,1717378250726,-1162.64817669,0.00028366,2]
[328428903,1717378250736,-2245.86894715,0.00028383,2]
[328428904,1717378250745,-182.42090167,0.00028443,2]
[328428905,1717378250754,-159.79947473,0.00028456,2]
[328428906,1717378250764,-182.42090168,0.00028467,2]
[328428907,1717378250773,-7311.36902879,0.00028482,17]
[328428908,1717378250782,-1219.08798904,0.00028507,2]
[328428909,1717378250791,-5000.0,0.00028511,19]
[328428910,1717378250800,-603.87922416,0.00028526,7]
[328428911,1717378250809,-200.0,0.00028535,120]
[328428912,1717378250819,-2245.86894715,0.00028566,2]
[328428913,1717378250828,-1162.64817669,0.00028581,2]
[328428914,1717378250837,-2245.86894715,0.0002861,2]
[328428915,1717378250850,-1219.08798904,0.0002867,2]
[328428916,1717378250859,-2245.86894715,0.00028681,2]
[328428917,1717378250869,-2645.61,0.000287,3]
[328428918,1717378250878,-2645.61,0.000287,3]
[328428919,1717378250887,-2645.61,0.000287,3]
[328428920,1717378250898,-2645.61,0.000287,3]
[328428921,1717378250907,-2645.61,0.000287,3]
[328428922,1717378250916,-2645.61,0.000287,3]
[328428923,1717378250929,-2645.61,0.000287,3]
[328428924,1717378250940,-2645.61,0.000287,3]
[328428925,1717378250948,-2645.61,0.000287,3]
[328428926,1717378250957,-2645.61,0.000287,3]
[328428927,1717378250967,-2645.61,0.000287,3]
[328428928,1717378250976,-2645.61,0.000287,3]
[328428929,1717378250985,-2645.61,0.000287,3]
[328428930,1717378250994,-2645.61,0.000287,3]
[328428931,1717378251004,-2645.61,0.000287,3]